[Event "FIDE WCCC G10 2018"]
[Site "Santiago de Compostela"]
[Date "2018.11.14"]
[Round "10"]
[White "Edithso, Samantha"]
[Black "Velea, Sophie"]
[Result "1-0"]
[ECO "C50"]
[WhiteElo "1879"]
[BlackElo "1593"]
[Annotator "NA RC"]
[PlyCount "171"]
[EventDate "2018.11.04"]
[EventType "swiss"]
[EventCountry "ESP"]
[SourceTitle "playchess.com"]
[Source "ChessBase"]
[SourceQuality "1"]
[TimeControl "40/5400+30:1800+30"]

{[%evp 15,158,-22,8,-25,0,-39,-8,-23,48,47,23,26,48,29,45,21,99,-17,18,-25,0,-36,-38,-31,-27,-31,-13,-54,32767,-106,-48,-36,-26,32767,-23,-48,-39,-30,-40,-64,-37,32767,32767,-26,-27,-85,-50,-46,-28,32767,-20,-11,0,-41,-23,-14,14,32767,17,4,0,0,0,32767,32767,0,32767,0,57,32767,32767,42,51,32767,101,14,10,7,12,36,32767,32767,356,32767,32767,32767,32767,32767,32767,61,32767,0,254,203,235,56,0,0,0,0,0,0,0,0,0,0,0,0,54,42,32767,-37,0,32767,0,32767,8,0,0,0,8,32767,8,8,637,1255,1450,4133,5401,261,12846,5615,29980,29987,29988,29989,29986,29989,29989,29990,29991,29982,29989,32767,29990]} 1. e4 {[%emt 0:00:00]} e5 {[%emt 0:00:34]} 2. Nf3 {[%emt 0:00:42]} Nc6 {[%emt 0:01:06]} 3. Bc4 {[%emt 0:01:06]} Nf6 {[%emt 0:00:44]} 4. d3 {[%emt 0:00:38]} Bc5 {[%emt 0:00:59]} 5. O-O {[%emt 0:00:14]} O-O {[%emt 0:00:48]} 6. Bg5 {[%emt 0:01:00]} h6 {[%emt 0:03:04]} 7. Bh4 {[%emt 0:01:04]} d6 {[%emt 0:01:25]} 8. h3 {[%emt 0:02:40]} Na5 {[%emt 0:03:00]} 9. Bb3 {[%emt 0:01:42]} Nxb3 {[%emt 0:02:46]} 10. axb3 {[%emt 0:00:08]} a6 {[%emt 0:00:48] C50: Hungarian Defence and Giuoco Pianissimo} (10... c6 11. Nc3 Bb6 12. Qd2 Qe7 13. Rfe1 Qe6 14. d4 Nh5 15. Ne2 Re8 16. Kh1 g5 17. Bg3 Qf6 18. Qd3 {0-1 (65) Joo,G (2107)-Zupe,M (2379) Hungary 2000}) 11. Qd2 $146 {[%emt 0:01:00]} ({Predecessor:} 11. Nc3 c6 12. Ne2 g5 13. Bg3 Be6 14. d4 exd4 15. Nexd4 Nxe4 16. Nxe6 fxe6 17. Bh2 Qf6 18. c3 {0-1 (27) Caloone,T (1599)-Azzouz,B (1841) La Fere 2010}) 11... Bd7 {[%emt 0:03:55]} (11... Kh7 $11) 12. Nc3 {[%emt 0:00:46]} c6 {[%emt 0:04:27]} 13. Ne2 {[%emt 0:00:54]} Qe7 {[%emt 0:03:37]} 14. Ng3 {[%emt 0:01:07]} Qe6 {[%emt 0:06:32]} 15. Nf5 {[%emt 0:02:01]} Nh5 {[%emt 0:05:11]} (15... Bb6 $11 {remains equal.}) 16. c3 {[%emt 0:04:07]} (16. g4 $16 Nf4 17. Bg3) 16... Bb6 {[%emt 0:07:32]} 17. Rae1 {[%emt 0:06:16]} ({Much weaker is} 17. Be7 Rfe8 $17) 17... Bd8 {[%emt 0:03:14]} 18. Bxd8 {[%emt 0:00:29]} Raxd8 {[%emt 0:02:05]} 19. d4 {[%emt 0:00:45]} Qf6 {[%emt 0:01:59]} 20. Ng3 {[%emt 0:03:07]} Nf4 {[%emt 0:02:48]} 21. Nh2 {[%emt 0:03:24]} Be6 {[%emt 0:04:33]} 22. Re3 {[%emt 0:02:25]} Qe7 {[%emt 0:07:27]} (22... Bxb3 $17 23. Ra1 Bc4) 23. c4 {[%emt 0:01:45]} c5 {[%emt 0:03:35]} 24. d5 {[%emt 0:00:24]} Bd7 {[%emt 0:00:30]} 25. Rf3 {[%emt 0:04:16]} f5 {[%emt 0:03:34]} 26. exf5 {[%emt 0:01:13]} Bxf5 {[%emt 0:00:18]} 27. Kh1 {[%emt 0:03:09]} Bd7 {[%emt 0:02:29]} 28. Re1 {[%emt 0:02:17]} Ng6 {[%emt 0:04:09]} 29. Re4 {[%emt 0:12:27]} Rf7 {[%emt 0:01:52]} 30. Qe3 {[%emt 0:06:45]} (30. Rxf7 $11 Qxf7 31. Re3) 30... Rdf8 {[%emt 0:02:28]} 31. Rxf7 {[%emt 0:04:50]} Rxf7 {[%emt 0:00:34]} 32. Qd2 {[%emt 0:02:37]} Qf8 {[%emt 0:01:14]} 33. f3 {[%emt 0:00:31]} Ne7 {[%emt 0:03:05]} 34. Kg1 {[%emt 0:00:39]} Bf5 {[%emt 0:01:01]} 35. Re1 {[%emt 0:01:41]} Bg6 {[%emt 0:02:05]} 36. b4 {[%emt 0:04:44]} Qc8 {[%emt 0:03:00]} 37. b3 {[%emt 0:00:26]} Qc7 {[%emt 0:01:11]} 38. Ng4 {[%emt 0:01:32]} Nf5 {[%emt 0:01:06]} 39. Nxf5 {[%emt 0:00:26]} Bxf5 {[%emt 0:00:42]} 40. Nf2 {[%emt 0:00:00]} Bg6 {[%emt 0:00:00]} 41. Qc3 {[%emt 0:02:26]} Rf8 {[%emt 0:06:10]} (41... Rf4 $11) 42. bxc5 {[%emt 0:01:06]} Qxc5 {[%emt 0:01:10]} 43. b4 {[%emt 0:00:12]} Qc7 {[%emt 0:00:45]} 44. Rc1 {[%emt 0:01:39]} Bf7 {[%emt 0:04:42]} (44... Rf4 $11 {remains equal.}) 45. Qe3 {[%emt 0:03:57]} ({Günstiger ist} 45. Ne4 $16) 45... Rc8 {[%emt 0:04:39]} 46. Nd3 {[%emt 0:00:36]} a5 {[%emt 0:06:41]} 47. c5 {[%emt 0:03:19]} axb4 {[%emt 0:03:52]} 48. cxd6 {[%emt 0:00:35]} Qd8 {[%emt 0:01:47]} 49. Rxc8 {[%emt 0:01:13]} Qxc8 {[%emt 0:00:22]} 50. Qxe5 {[%emt 0:00:37]} b3 {[%emt 0:01:14]} 51. Kh2 {[%emt 0:00:29]} b6 $1 $11 {[%emt 0:01:26] and Black has nothing to worry.} 52. Nb4 $2 {[%emt 0:03:37]} (52. Nf4 $18 Qd7 53. Ne6) 52... Qd7 {[%emt 0:01:01]} 53. Nd3 {[%emt 0:01:49]} ({Günstiger ist} 53. Kg3 $16) 53... Qb5 $2 {[%emt 0:02:02]} 54. Qe7 {[%emt 0:01:22]} Be8 {[%emt 0:00:51]} 55. Nb2 {[%emt 0:06:02]} (55. Ne5 $18 Qa4 56. Qe6+ Kh8 57. Kg3) 55... Bd7 {[%emt 0:00:57]} 56. f4 {[%emt 0:01:48]} Qb4 {[%emt 0:02:13]} 57. Qe5 {[%emt 0:00:26]} Qb5 {[%emt 0:00:48]} 58. Qe7 {[%emt 0:01:37]} Qb4 {[%emt 0:00:35]} 59. Nd3 {[%emt 0:01:43]} Qa4 $1 {[%emt 0:00:59]} 60. Qd8+ {[%emt 0:01:14]} Kh7 {[%emt 0:00:19]} 61. Qxb6 {[%emt 0:00:27]} Bf5 {[%emt 0:01:20]} ({Better is} 61... Qc4 $11 62. Qe3 Qxd5) 62. Qe3 {[%emt 0:00:21]} Qc4 {[%emt 0:00:34]} 63. Nb2 {[%emt 0:00:36]} ({White should try} 63. Ne5 $14 Qc2 64. d7 Bxd7 65. Nxd7) 63... Qxd5 {[%emt 0:00:23]} ({Black should play} 63... Qc2 $1 $15 64. Na4 b2) 64. Qe5 {[%emt 0:00:11]} Qxe5 {[%emt 0:02:18]} 65. fxe5 {[%emt 0:00:02]} Kg6 {[%emt 0:00:40]} 66. g4 {[%emt 0:00:16]} (66. Kg3 $16) 66... Bd7 {[%emt 0:00:22]} 67. Kg3 {[%emt 0:00:09]} Kf7 {[%emt 0:00:12]} 68. Kf4 {[%emt 0:00:13]} g5+ {[%emt 0:00:53]} 69. Ke3 {[%emt 0:01:34]} Ke6 $2 {[%emt 0:00:22]} (69... Bc6 $11) 70. Kd4 {[%emt 0:00:15]} Bc6 {[%emt 0:00:10]} 71. Nd3 {[%emt 0:00:21]} Bg2 {[%emt 0:00:26]} 72. Nc5+ {[%emt 0:00:41]} Kf7 {[%emt 0:00:13]} 73. e6+ {[%emt 0:00:16]} Ke8 {[%emt 0:00:17]} 74. Nxb3 {[%emt 0:00:19]} Bxh3 {[%emt 0:00:20]} 75. Nc5 {[%emt 0:00:14]} Bg2 {[%emt 0:00:48]} 76. Ke5 {[%emt 0:00:06]} Bc6 {[%emt 0:00:45]} 77. Kf6 {[%emt 0:00:20]} Kd8 {[%emt 0:00:17]} 78. Kf7 {[%emt 0:00:51]} Be8+ {[%emt 0:00:14]} 79. Kf8 {[%emt 0:00:10]} Bc6 {[%emt 0:00:21]} 80. e7+ {[%emt 0:00:10]} Kc8 {[%emt 0:00:09]} 81. e8=Q+ {[%emt 0:00:41]} Bxe8 {[%emt 0:00:12]} 82. Kxe8 {[%emt 0:00:05]} h5 {[%emt 0:00:11]} 83. d7+ {[%emt 0:00:04]} Kb8 {[%emt 0:00:13]} 84. d8=Q+ {[%emt 0:00:06]} Ka7 {[%emt 0:00:11]} 85. Qc7+ {[%emt 0:00:11]} Ka8 {[%emt 0:00:08]} 86. Qb7# {[%emt 0:00:03]} 1-0

[Event "FIDE WCCC G10 2018"]
[Site "Santiago de Compostela"]
[Date "2018.11.14"]
[Round "10"]
[White "Zhapova, Yana"]
[Black "Zakirova, Aisha"]
[Result "1/2-1/2"]
[ECO "B40"]
[WhiteElo "1821"]
[BlackElo "1678"]
[Annotator "NA RC"]
[PlyCount "140"]
[EventDate "2018.11.04"]
[EventType "swiss"]
[EventCountry "ESP"]
[SourceTitle "playchess.com"]
[Source "ChessBase"]
[SourceQuality "1"]
[TimeControl "40/5400+30:1800+30"]

{[%evp 16,135,65,1,107,98,60,61,75,83,62,59,83,30,32767,67,56,59,33,17,41,17,35,31,13,49,7,10,22,8,25,32767,18,0,11,0,0,-12,0,0,40,19,34,32767,68,32767,160,16,12,8,14,10,15,32767,28,27,32767,26,85,10,70,58,68,59,47,41,41,59,22,22,32767,7,24,36,22,0,0,32767,0,32767,32767,0,0,0,0,0,32767,32767,39,32767,32767,32767,41,32,0,8,32767,32767,32767,41,32767,32767,32767,0,0,0,0,0,-8,0,0,0,0,32767,32767,32767,32767,0,32767,32767,32767,0]} 1. e4 {[%emt 0:00:00]} c5 {[%emt 0:00:00]} 2. Nf3 {[%emt 0:00:00]} e6 {[%emt 0:00:00]} 3. d4 {[%emt 0:00:00]} cxd4 {[%emt 0:00:00]} 4. Nxd4 {[%emt 0:00:02]} Nf6 {[%emt 0:00:01]} 5. Nc3 {[%emt 0:00:18]} Nc6 {[%emt 0:00:23]} 6. Nxc6 {[%emt 0:00:10]} bxc6 {[%emt 0:00:23]} 7. Be2 {[%emt 0:00:45]} Bb4 {[%emt 0:01:33]} 8. Qd3 {[%emt 0:06:08]} h6 $146 {[%emt 0:16:02] B45: Sicilian Four Knights} (8... d5 $11) ({Predecessor:} 8... O-O 9. Bg5 h6 10. Bh4 e5 11. O-O Re8 12. Rfd1 g5 13. Bg3 Qe7 14. h4 Bxc3 15. bxc3 d5 16. exd5 Nxd5 17. hxg5 hxg5 {0-1 (56) Krajnc,L (2508)-Chiru,I (2548) ICCF email 2008}) 9. O-O {[%emt 0:01:10]} (9. a3 $16 Ba5 10. e5) 9... O-O {[%emt 0:00:48] [#]} (9... Qc7 $11) 10. e5 $1 {[%emt 0:02:36]} Nd5 {[%emt 0:03:38]} 11. Qg3 {[%emt 0:04:55]} Kh8 {[%emt 0:02:27]} 12. Ne4 {[%emt 0:03:06]} f5 {[%emt 0:04:34]} 13. exf6 {[%emt 0:01:19]} Nxf6 {[%emt 0:02:59]} 14. Nxf6 {[%emt 0:01:03]} Qxf6 {[%emt 0:00:35]} 15. Be3 {[%emt 0:02:51]} e5 {[%emt 0:06:13]} ({Don't go for} 15... Qxb2 $2 16. Rab1 $18) 16. f4 {[%emt 0:08:51]} e4 {[%emt 0:07:50]} 17. c3 {[%emt 0:00:41]} Ba5 {[%emt 0:01:17]} 18. Kh1 {[%emt 0:01:32]} Bb6 {[%emt 0:00:52]} 19. Bxb6 {[%emt 0:00:18]} axb6 {[%emt 0:00:18]} 20. Qe3 {[%emt 0:00:35]} d5 {[%emt 0:03:21]} 21. Qxb6 {[%emt 0:00:41]} Bf5 {[%emt 0:04:33]} 22. Qe3 {[%emt 0:03:21]} Rfb8 {[%emt 0:01:10]} 23. g4 {[%emt 0:07:29]} Bh7 {[%emt 0:07:35]} 24. g5 {[%emt 0:09:30]} Qd6 {[%emt 0:05:05]} 25. b4 {[%emt 0:09:10]} Ra3 {[%emt 0:04:40]} 26. Qd4 {[%emt 0:00:56]} Bf5 {[%emt 0:02:57]} 27. Rg1 {[%emt 0:07:30]} Rb7 {[%emt 0:17:55]} 28. gxh6 {[%emt 0:01:09]} Qxh6 {[%emt 0:00:15]} 29. Rg5 {[%emt 0:00:18]} Qe6 $1 {[%emt 0:02:04]} 30. Rag1 {[%emt 0:02:36]} Raa7 {[%emt 0:01:18]} (30... e3 $11 31. Bd3 (31. Rxg7 Qe4+ 32. Bf3 Qxf3+ 33. R7g2+ Kh7 $11) 31... Be4+ 32. Bxe4 Qxe4+ 33. Qxe4 dxe4) 31. h4 {[%emt 0:02:45]} ({White should try} 31. a4 $16) 31... e3 {[%emt 0:03:01]} 32. Kh2 {[%emt 0:06:54]} Qe4 {[%emt 0:01:13]} 33. Qxe4 {[%emt 0:01:13]} Bxe4 {[%emt 0:00:12]} 34. R5g3 {[%emt 0:00:47]} Rxa2 {[%emt 0:00:50]} 35. Rxe3 {[%emt 0:00:10]} Rba7 {[%emt 0:00:47]} 36. Kg3 {[%emt 0:00:47]} R7a3 {[%emt 0:00:39]} (36... Rc2 $11) 37. Rc1 {[%emt 0:02:01]} ({Better is} 37. Kg4 $16) 37... Kg8 {[%emt 0:00:25] [#]} (37... Rb2 $11) 38. Rxe4 $1 {[%emt 0:03:10]} dxe4 {[%emt 0:00:19]} 39. Bc4+ {[%emt 0:00:04]} Kf8 {[%emt 0:00:16]} 40. Bxa2 {[%emt 0:00:00]} Rxa2 {[%emt 0:00:00]} 41. Re1 {[%emt 0:00:11]} Rc2 {[%emt 0:01:07]} 42. Re3 {[%emt 0:00:15]} Kf7 {[%emt 0:03:04]} 43. Kg4 {[%emt 0:09:16]} Kf6 {[%emt 0:02:25]} 44. Rxe4 {[%emt 0:01:20]} Rxc3 {[%emt 0:00:09]} 45. f5 {[%emt 0:00:19]} Rc2 {[%emt 0:01:35]} 46. Re6+ {[%emt 0:00:45]} Kf7 {[%emt 0:00:07]} 47. Kf4 {[%emt 0:00:54]} Rh2 {[%emt 0:01:50]} 48. Kg3 {[%emt 0:00:37]} Rc2 {[%emt 0:00:56]} 49. Kf3 {[%emt 0:00:18]} Rc4 {[%emt 0:00:49]} 50. Re4 {[%emt 0:01:03]} Rc3+ {[%emt 0:00:13]} 51. Kf4 {[%emt 0:00:07]} Kf6 {[%emt 0:01:53]} 52. Re6+ {[%emt 0:00:14]} Kf7 {[%emt 0:00:12]} 53. h5 {[%emt 0:00:20]} Rh3 {[%emt 0:02:38]} 54. Rxc6 {[%emt 0:01:02]} Rh4+ {[%emt 0:00:21]} 55. Kg5 {[%emt 0:00:06]} Rxb4 {[%emt 0:00:08]} 56. Rc7+ {[%emt 0:00:07]} Kg8 {[%emt 0:00:45]} 57. h6 {[%emt 0:00:26]} gxh6+ {[%emt 0:00:52]} 58. Kxh6 {[%emt 0:00:02]} Rg4 {[%emt 0:01:18]} 59. f6 {[%emt 0:01:30]} Kf8 {[%emt 0:00:46]} 60. Re7 {[%emt 0:00:22]} Rg1 {[%emt 0:00:58]} 61. Kh7 {[%emt 0:00:22]} Rh1+ {[%emt 0:01:40]} 62. Kg6 {[%emt 0:00:10]} Rg1+ {[%emt 0:00:06]} 63. Kf5 {[%emt 0:00:22]} Rf1+ {[%emt 0:00:15]} 64. Ke6 {[%emt 0:00:13]} Re1+ {[%emt 0:00:16]} 65. Kd7 {[%emt 0:00:05]} Rd1+ {[%emt 0:00:05]} 66. Kc7 {[%emt 0:00:15]} Rc1+ {[%emt 0:00:25]} 67. Kd8 {[%emt 0:00:09]} Rd1+ {[%emt 0:00:09]} 68. Rd7 $11 {[%emt 0:00:04]} Rxd7+ {[%emt 0:00:06]} 69. Kxd7 {[%emt 0:00:05]} Kf7 {[%emt 0:00:05]} 70. Kd6 {[%emt 0:00:04]} Kxf6 {[%emt 0:00:07] Ke5+} 1/2-1/2

[Event "FIDE WCCC G10 2018"]
[Site "Santiago de Compostela"]
[Date "2018.11.14"]
[Round "10"]
[White "Shvedova, Alexandra"]
[Black "Zhou, Yafei"]
[Result "1-0"]
[ECO "C07"]
[WhiteElo "1782"]
[BlackElo "1648"]
[Annotator "NA RC"]
[PlyCount "161"]
[EventDate "2018.11.04"]
[EventType "swiss"]
[EventCountry "ESP"]
[SourceTitle "playchess.com"]
[Source "ChessBase"]
[SourceQuality "1"]
[TimeControl "40/5400+30:1800+30"]

1. e4 {[%emt 0:00:00]} e6 {[%emt 0:00:00]} 2. d4 {[%emt 0:00:00]} d5 {[%emt 0:00:00]} 3. Nd2 {[%emt 0:00:00]} c5 {[%emt 0:00:00]} 4. exd5 {[%emt 0:00:00]} Qxd5 {[%emt 0:00:05]} 5. Ngf3 {[%emt 0:00:03]} cxd4 {[%emt 0:00:37]} 6. Bc4 {[%emt 0:00:07]} Qd8 {[%emt 0:00:19]} 7. O-O {[%emt 0:00:36]} Nc6 {[%emt 0:01:25]} 8. Nb3 {[%emt 0:00:10]} a6 {[%emt 0:00:12]} 9. Nbxd4 {[%emt 0:00:27]} Nxd4 {[%emt 0:00:10]} 10. Nxd4 {[%emt 0:00:04]} Qc7 {[%emt 0:00:04]} 11. Bb3 {[%emt 0:00:40]} Bd6 {[%emt 0:00:07]} 12. Re1 {[%emt 0:04:22]} Nf6 {[%emt 0:04:09]} 13. Kh1 {[%emt 0:17:20]} O-O {[%emt 0:01:12]} 14. Bg5 {[%emt 0:00:24]} Be5 {[%emt 0:15:02]} 15. c3 {[%emt 0:05:12]} h6 {[%emt 0:06:41]} 16. Bh4 {[%emt 0:03:58]} b5 {[%emt 0:18:54]} 17. Nf3 {[%emt 0:09:33]} Bf4 {[%emt 0:03:53]} 18. Qe2 {[%emt 0:03:22]} Bb7 {[%emt 0:02:28]} 19. Nd4 {[%emt 0:14:22]} Ne4 {[%emt 0:06:22]} 20. Bc2 {[%emt 0:05:40]} Ng5 {[%emt 0:06:23]} 21. Qd3 {[%emt 0:06:43]} Qc4 {[%emt 0:00:36]} 22. Qd1 {[%emt 0:08:58]} Qd5 {[%emt 0:01:39]} 23. f3 {[%emt 0:00:28]} Rfe8 {[%emt 0:09:18]} 24. Qe2 {[%emt 0:03:45]} Nh7 {[%emt 0:09:25]} 25. Be4 {[%emt 0:05:50]} Qd7 {[%emt 0:00:18]} 26. Rad1 {[%emt 0:00:57]} Bxe4 {[%emt 0:01:34]} 27. fxe4 {[%emt 0:02:14]} Qc7 {[%emt 0:02:26]} 28. Qf2 {[%emt 0:01:32]} Nf8 {[%emt 0:01:02]} 29. Ne2 {[%emt 0:02:23]} Be5 {[%emt 0:00:24]} 30. Qf3 {[%emt 0:01:24]} Ng6 {[%emt 0:00:19]} 31. Bf2 {[%emt 0:00:25]} Rad8 {[%emt 0:00:41]} 32. Bd4 {[%emt 0:00:26]} Rd7 {[%emt 0:01:50]} 33. Rc1 {[%emt 0:00:42]} Red8 {[%emt 0:00:57]} 34. Qe3 {[%emt 0:00:29]} Qb7 {[%emt 0:01:36]} 35. a3 {[%emt 0:01:14]} Qb8 {[%emt 0:03:33]} 36. h3 {[%emt 0:01:32]} Bc7 {[%emt 0:00:57]} 37. Qf2 {[%emt 0:01:29]} Ne5 {[%emt 0:00:41]} 38. Qg3 {[%emt 0:00:46]} Ng6 {[%emt 0:00:49]} 39. Qf2 {[%emt 0:01:03]} e5 {[%emt 0:01:39]} 40. Be3 {[%emt 0:00:00]} Rd6 {[%emt 0:00:00]} 41. Ng3 {[%emt 0:01:00]} Bb6 {[%emt 0:07:44]} 42. Nf5 {[%emt 0:10:24]} Bxe3 {[%emt 0:06:35]} 43. Qxe3 {[%emt 0:02:15]} Rd3 {[%emt 0:00:38]} 44. Qf2 {[%emt 0:00:28]} Qb7 {[%emt 0:01:40]} 45. Rc2 {[%emt 0:01:26]} Rd1 {[%emt 0:02:19]} 46. Kh2 {[%emt 0:01:16]} Qd7 {[%emt 0:04:09]} 47. g3 {[%emt 0:06:53]} Rxe1 {[%emt 0:04:17]} 48. Qxe1 {[%emt 0:00:03]} Qd3 {[%emt 0:00:43]} 49. Qe2 {[%emt 0:00:55]} Qxe2+ {[%emt 0:02:19]} 50. Rxe2 {[%emt 0:00:03]} f6 {[%emt 0:00:35]} 51. Kg2 {[%emt 0:02:13]} Kf7 {[%emt 0:00:25]} 52. Ne3 {[%emt 0:01:19]} Ne7 {[%emt 0:00:33]} 53. Kf2 {[%emt 0:00:58]} Ke6 {[%emt 0:00:25]} 54. Rc2 {[%emt 0:01:44]} Rd7 {[%emt 0:02:30]} 55. Ke2 {[%emt 0:00:18]} Nc8 {[%emt 0:00:59]} 56. b3 {[%emt 0:02:16]} g6 {[%emt 0:00:54]} 57. g4 {[%emt 0:01:48]} Nb6 {[%emt 0:00:32]} 58. Rc1 {[%emt 0:00:34]} Kd6 {[%emt 0:01:51]} 59. h4 {[%emt 0:01:47]} Kc6 {[%emt 0:00:45]} 60. Rf1 {[%emt 0:00:16]} Rf7 {[%emt 0:00:47]} 61. g5 {[%emt 0:02:32]} hxg5 {[%emt 0:00:13]} 62. hxg5 {[%emt 0:00:03]} Nd7 {[%emt 0:00:30]} 63. Ng4 {[%emt 0:00:26]} f5 {[%emt 0:00:40]} 64. Nh6 {[%emt 0:00:13]} Rg7 {[%emt 0:00:59]} 65. exf5 {[%emt 0:00:10]} gxf5 {[%emt 0:00:11]} 66. Rxf5 {[%emt 0:00:03]} Kd6 {[%emt 0:00:29]} 67. b4 {[%emt 0:01:09]} Ke6 {[%emt 0:00:25]} 68. Kd3 {[%emt 0:00:22]} Rg6 {[%emt 0:01:07]} 69. Ke4 {[%emt 0:00:16]} Rg7 {[%emt 0:00:47]} 70. Ng4 {[%emt 0:00:31]} Re7 {[%emt 0:00:16]} 71. Nf6 {[%emt 0:00:50]} Rf7 {[%emt 0:00:42]} 72. Nxd7 {[%emt 0:00:08]} Rxd7 {[%emt 0:00:20]} 73. Rxe5+ {[%emt 0:00:27]} Kf7 {[%emt 0:00:11]} 74. Rf5+ {[%emt 0:00:19]} Kg6 {[%emt 0:00:24]} 75. Rf6+ {[%emt 0:00:31]} Kxg5 {[%emt 0:00:09]} 76. Rxa6 {[%emt 0:00:03]} Rc7 {[%emt 0:00:14]} 77. Kd4 {[%emt 0:00:12]} Rc4+ {[%emt 0:00:32]} 78. Kd3 {[%emt 0:00:03]} Kf5 {[%emt 0:00:18]} 79. Ra5 {[%emt 0:00:06]} Rc7 {[%emt 0:00:11]} 80. Rxb5+ {[%emt 0:00:04]} Ke6 {[%emt 0:00:09]} 81. c4 {[%emt 0:00:07] Kd5 Ke4+} 1-0

[Event "FIDE WCCC G10 2018"]
[Site "Santiago de Compostela"]
[Date "2018.11.14"]
[Round "10"]
[White "Khamdamova, Afruza"]
[Black "Kirtadze, Anastasia"]
[Result "0-1"]
[ECO "C10"]
[WhiteElo "1691"]
[BlackElo "1373"]
[Annotator "NA RC"]
[PlyCount "68"]
[EventDate "2018.11.04"]
[EventType "swiss"]
[EventCountry "ESP"]
[SourceTitle "playchess.com"]
[Source "ChessBase"]
[SourceQuality "1"]
[TimeControl "40/5400+30:1800+30"]

1. e4 {[%emt 0:00:00]} e6 {[%emt 0:00:00]} 2. d4 {[%emt 0:00:00]} d5 {[%emt 0:00:15]} 3. Nc3 {[%emt 0:00:00]} dxe4 {[%emt 0:00:45]} 4. Nxe4 {[%emt 0:00:00]} Nd7 {[%emt 0:00:26]} 5. Nf3 {[%emt 0:00:16]} Be7 {[%emt 0:00:16]} 6. Bd3 {[%emt 0:00:26]} Ngf6 {[%emt 0:00:27]} 7. O-O {[%emt 0:00:15]} O-O {[%emt 0:00:33]} 8. Bf4 {[%emt 0:00:20]} b6 {[%emt 0:01:19]} 9. c4 {[%emt 0:06:01]} Bb7 {[%emt 0:00:55]} 10. Nc3 {[%emt 0:00:11]} Nh5 {[%emt 0:03:19]} 11. Bd2 {[%emt 0:01:05]} g6 {[%emt 0:03:43]} 12. Bh6 {[%emt 0:05:57]} Ng7 {[%emt 0:01:01]} 13. d5 {[%emt 0:05:26]} exd5 {[%emt 0:01:19]} 14. Nxd5 {[%emt 0:00:31]} Bxd5 {[%emt 0:01:13]} 15. cxd5 {[%emt 0:00:05]} Nf6 {[%emt 0:02:17]} 16. Bb5 {[%emt 0:01:49]} Qd6 {[%emt 0:05:27]} 17. Bc6 {[%emt 0:00:13]} Rad8 {[%emt 0:00:05]} 18. Qa4 {[%emt 0:00:16]} Nxd5 {[%emt 0:12:18]} 19. Rfd1 {[%emt 0:05:40]} Qb4 {[%emt 0:01:21]} 20. Qxa7 {[%emt 0:01:32]} Qxb2 {[%emt 0:03:53]} 21. Bxd5 {[%emt 0:15:17]} Rxd5 {[%emt 0:00:09]} 22. Qxc7 {[%emt 0:00:11]} Bc5 {[%emt 0:04:18]} 23. Be3 {[%emt 0:03:29]} Bxe3 {[%emt 0:05:12]} 24. fxe3 {[%emt 0:00:05]} Rc5 {[%emt 0:00:37]} 25. Qb7 {[%emt 0:07:19]} b5 {[%emt 0:23:53]} 26. Nd4 {[%emt 0:00:56]} Qc3 {[%emt 0:03:00]} 27. Nxb5 {[%emt 0:11:13]} Qxe3+ {[%emt 0:00:24]} 28. Kh1 {[%emt 0:00:04]} Nf5 {[%emt 0:01:40]} 29. h3 {[%emt 0:05:40]} Ng3+ {[%emt 0:00:45]} 30. Kh2 {[%emt 0:00:06]} Qe5 {[%emt 0:01:28]} 31. a4 {[%emt 0:00:45]} Ne4+ {[%emt 0:06:31]} 32. Kg1 {[%emt 0:00:20]} Rc2 {[%emt 0:01:20]} 33. Ra3 {[%emt 0:04:33]} Re8 {[%emt 0:07:27]} 34. Qd5 {[%emt 0:01:49]} Qb2 {[%emt 0:01:50]} 0-1

[Event "FIDE WCCC G10 2018"]
[Site "Santiago de Compostela"]
[Date "2018.11.14"]
[Round "10"]
[White "Anupam M Sreekumar"]
[Black "Kulish, Glafira"]
[Result "1-0"]
[ECO "B43"]
[WhiteElo "1615"]
[BlackElo "1153"]
[Annotator "NA RC"]
[PlyCount "87"]
[EventDate "2018.11.04"]
[EventType "swiss"]
[EventCountry "ESP"]
[SourceTitle "playchess.com"]
[Source "ChessBase"]
[SourceQuality "1"]
[TimeControl "40/5400+30:1800+30"]

1. e4 {[%emt 0:00:00]} c5 {[%emt 0:00:00]} 2. Nf3 {[%emt 0:00:25]} e6 {[%emt 0:00:00]} 3. d4 {[%emt 0:00:19]} cxd4 {[%emt 0:00:00]} 4. Nxd4 {[%emt 0:00:42]} a6 {[%emt 0:00:03]} 5. Nc3 {[%emt 0:00:38]} Qc7 {[%emt 0:00:09]} 6. Be2 {[%emt 0:02:10]} b5 {[%emt 0:00:11]} 7. a3 {[%emt 0:00:50]} Bb7 {[%emt 0:00:42]} 8. Be3 {[%emt 0:01:15]} Nf6 {[%emt 0:00:44]} 9. O-O {[%emt 0:01:44]} Nxe4 {[%emt 0:19:04]} 10. Nxe4 {[%emt 0:07:09]} Bxe4 {[%emt 0:00:12]} 11. c3 {[%emt 0:03:06]} Be7 {[%emt 0:04:34]} 12. a4 {[%emt 0:02:25]} b4 {[%emt 0:08:40]} 13. cxb4 {[%emt 0:07:30]} Bxb4 {[%emt 0:00:27]} 14. Rc1 {[%emt 0:07:19]} Qb7 {[%emt 0:18:04]} 15. f3 {[%emt 0:05:51]} Bd5 {[%emt 0:04:44]} 16. Nb3 {[%emt 0:08:06]} d6 {[%emt 0:09:31]} 17. Nd2 {[%emt 0:07:34]} O-O {[%emt 0:02:53]} 18. Nc4 {[%emt 0:02:56]} Nd7 {[%emt 0:06:55]} 19. Kh1 {[%emt 0:11:21]} Bxc4 {[%emt 0:04:28]} 20. Rxc4 {[%emt 0:04:02]} d5 {[%emt 0:02:07]} 21. Rh4 {[%emt 0:01:53]} Be7 {[%emt 0:02:42]} 22. Rh3 {[%emt 0:01:08]} Bf6 {[%emt 0:03:51]} 23. Qb1 {[%emt 0:02:37]} g6 {[%emt 0:00:22]} 24. b3 {[%emt 0:00:33]} Bg7 {[%emt 0:00:37]} 25. f4 {[%emt 0:02:45]} Rfc8 {[%emt 0:02:26]} 26. Qe1 {[%emt 0:01:28]} Bf6 {[%emt 0:07:15]} 27. Qd1 {[%emt 0:02:07]} Rab8 {[%emt 0:01:46]} 28. Bd4 {[%emt 0:01:47]} Bg7 {[%emt 0:00:17]} 29. Bxg7 {[%emt 0:01:38]} Kxg7 {[%emt 0:00:03]} 30. Qd4+ {[%emt 0:00:33]} Nf6 {[%emt 0:00:46]} 31. g4 {[%emt 0:03:00]} Qb4 {[%emt 0:00:18]} 32. Qa1 {[%emt 0:06:22]} Qe4+ {[%emt 0:00:32]} 33. Bf3 {[%emt 0:00:38]} Qxf4 {[%emt 0:00:38]} 34. Bg2 {[%emt 0:00:26]} Qg5 {[%emt 0:00:40]} 35. Rhf3 {[%emt 0:00:59]} e5 {[%emt 0:01:11]} 36. Rxf6 {[%emt 0:00:26]} Qxf6 {[%emt 0:00:21]} 37. Rxf6 {[%emt 0:00:07]} Kxf6 {[%emt 0:00:02]} 38. Bxd5 {[%emt 0:00:23]} Rc7 {[%emt 0:00:27]} 39. g5+ {[%emt 0:00:37]} Kf5 {[%emt 0:00:57]} 40. h4 {[%emt 0:00:00]} e4 {[%emt 0:00:00]} 41. Qd4 {[%emt 0:03:50]} Re8 {[%emt 0:04:07]} 42. Kg2 {[%emt 0:02:59]} Rce7 {[%emt 0:00:50]} 43. Kg3 {[%emt 0:01:07]} Re5 {[%emt 0:00:30]} 44. Qf2# {[%emt 0:00:12]} 1-0